Workbook

Sheet Turbo Motors Outline (hidden)
B2: Turbo Riguor Motor | U2: Stator
B3: Category | C3: Item | D3: PPM | Q3: Category | R3: Item | S3: PPM | U3: Category | V3: Item | W3: PPM
B4: Output | C4: Turbo Riguor Motor | D4: 2.8 | Q4: Output | U4: Output | V4: Stator | W4: 5.0
B5: Input 1 | C5: Motor | D5: 6.563 | Q5: Input 1 | U5: Input 1 | V5: Steel Pipe | W5: 15
B6: Input 2 | C6: Radio Control Unit | D6: 4.688 | Q6: Input 2 | U6: Input 2 | V6: Wire | W6: 40
B7: Input 3 | C7: A.I. Limiter | D7: 8.438 | Q7: Input 3
B8: Input 4 | C8: Stator | D8: 6.563 | Q8: Input 4
B11: Riguor Motor | F11: Copper Rotor | J11: Stator | N11: Insulated Crystal Oscillator
B12: Category | C12: Item | D12: PPM | F12: Category | G12: Item | H12: PPM | J12: Category | K12: Item | L12: PPM | N12: Category | O12: Item | P12: PPM
B13: Output | C13: Motor | D13: 7.5 | F13: Output | G13: Rotor | H13: 11.2 | J13: Output | K13: Stator | L13: 5.0 | N13: Output | O13: Crystal Oscillator | P13: 1.9
B14: Input 1 | C14: Rotor | D14: 3.75 | F14: Input 1 | G14: Copper Sheet | H14: 22.5 | J14: Input 1 | K14: Steel Pipe | L14: 15 | N14: Input 1 | O14: Quartz Crystal | P14: 18.75
B15: Input 2 | C15: Stator | D15: 3.75 | F15: Input 2 | G15: Screw | H15: 195 | J15: Input 2 | K15: Wire | L15: 40 | N15: Input 2 | O15: Rubber | P15: 13.125
B16: Input 3 | C16: Crystal Oscillator | D16: 1.25 | N16: Input 3 | O16: A.I. Limiter | P16: 1.875
N18: A.I. Limiter
N19: Category | O19: Item | P19: PPM
N20: Output | O20: A.I. Limiter | P20: 5.0
N21: Input 1 | O21: Copper Sheet | P21: 25
N22: Input 2 | O22: Quickwire | P22: 20
B24: Radio Control System | F24: Heat Exchanger | J24: Supercomputer
B25: Category | C25: Item | D25: PPM | F25: Category | G25: Item | H25: PPM | J25: Category | K25: Item | L25: PPM
B26: Output | C26: Radio Control Unit | D26: 3.8 | F26: Output | G26: Heat Sink | H26: 13.1 | J26: Output | K26: Supercomputer | L26: 1.9
B27: Input 1 | C27: Heat Sink | D27: 12.5 | F27: Input 1 | G27: Alclad Aluminum Sheet | H27: 37.5 | J27: Input 1 | K27: Computer | L27: 3.75
B28: Input 2 | C28: Supercomputer | D28: 1.25 | F28: Input 2 | G28: Copper Sheet | H28: 56.25 | J28: Input 2 | K28: A.I. Limiter | L28: 3.75
B29: Input 3 | C29: Quartz Crystal | D29: 37.5 | J29: Input 3 | K29: High-Speed Connector | L29: 5.625
J30: Input 4 | K30: Plastic | L30: 52.5
B31: A.I. Limiter
B32: Category | C32: Item | D32: PPM | J32: Caterium Computer | N32: Silicone Circuit Board
B33: Output | C33: A.I. Limiter | D33: 5.0 | J33: Category | K33: Item | L33: PPM | N33: Category | O33: Item | P33: PPM
B34: Input 1 | C34: Copper Sheet | D34: 25 | J34: Output | K34: Computer | L34: 3.8 | N34: Output | O34: Circuit Board | P34: 12.5
B35: Input 2 | C35: Quickwire | D35: 20 | J35: Input 1 | K35: Circuit Board | L35: 26.25 | N35: Input 1 | O35: Copper Sheet | P35: 27.5
J36: Input 2 | K36: Quickwire | L36: 105 | N36: Input 2 | O36: Silica | P36: 27.5
B37: Stator | J37: Input 3 | K37: Rubber | L37: 45
B38: Category | C38: Item | D38: PPM
B39: Output | C39: Stator | D39: 5.0 | J39: A.I. Limiter
B40: Input 1 | C40: Steel Pipe | D40: 15 | J40: Category | K40: Item | L40: PPM
B41: Input 2 | C41: Wire | D41: 40 | J41: Output | K41: A.I. Limiter | L41: 5.0
J42: Input 1 | K42: Copper Sheet | L42: 25
J43: Input 2 | K43: Quickwire | L43: 20
J45: High-Speed Connector | N45: Silicone Circuit Board
J46: Category | K46: Item | L46: PPM | N46: Category | O46: Item | P46: PPM
J47: Output | K47: High-Speed Connector | L47: 3.8 | N47: Output | O47: Circuit Board | P47: 12.5
J48: Input 1 | K48: Quickwire | L48: 210 | N48: Input 1 | O48: Copper Sheet | P48: 27.5
J49: Input 2 | K49: Cable | L49: 37.5 | N49: Input 2 | O49: Silica | P49: 27.5
J50: Input 3 | K50: Circuit Board | L50: 3.75

Sheet Hours
A1: Game | B1: Days | C1: Hours
A2: Satisfactory Experimental | B2: =8+(5/24) -> 8.208 | C2: =B2*24 -> 197
A3: Satisfactory Early Access | B3: =19+(6.5/24) -> 19.271 | C3: =B3*24 -> 462.5
A4: Steam | B4: =C4/24 -> 8.967 | C4: 215.2
C5: =SUM(C2:C4) -> 874.7

Sheet Todo
A1: Priority | B1: Description | C1: Notes

Sheet Calculator
A1: Required Item | B1: Recipe Name | C1: PPM Req'd | D1: Machine | E1: Count | F1: Power | L1: Queued Item | M1: PPM Req'd
A2: Assembly Director System | B2: Assembly Director System | C2: 3.0 | D2: Assembler | E2: 4.00 | F2: 60.0
A3: Adaptive Control Unit | B3: Adaptive Control Unit | C3: 6.0 | D3: Manufacturer | E3: 6.00 | F3: 330.0
A4: Supercomputer | B4: Supercomputer | C4: 3.0 | D4: Manufacturer | E4: 1.60 | F4: 88.0 | I4: Desired Item | J4: Desired PPM
A5: Automated Wiring | B5: Automated Wiring | C5: 45.0 | D5: Assembler | E5: 18.00 | F5: 270.0 | I5: Assembly Director System | J5: 3.000
A6: Circuit Board | B6: Electrode Circuit Board | C6: 71.0 | D6: Assembler | E6: 14.20 | F6: 213.0
A7: Heavy Modular Frame | B7: Heavy Encased Frame | C7: 6.0 | D7: Manufacturer | E7: 2.13 | F7: 117.3
A8: Computer | B8: Crystal Computer | C8: 12.0 | D8: Assembler | E8: 4.27 | F8: 64.0
A9: Stator | B9: Stator | C9: 45.0 | D9: Assembler | E9: 9.00 | F9: 135.0
A10: Cable | B10: Cable | C10: 1,068.0 | D10: Constructor | E10: 35.60 | F10: 142.4
A11: Steel Pipe | B11: Steel Pipe | C11: 347.0 | D11: Constructor | E11: 17.35 | F11: 69.4
A12: Wire | B12: Iron Wire | C12: 2,856.1 | D12: Constructor | E12: 126.94 | F12: 507.8
A13: Steel Ingot | B13: Solid Steel Ingot | C13: 520.5 | D13: Foundry | E13: 8.68 | F13: 138.8
A14: Iron Ingot | B14: Pure Iron Ingot | C14: 2,299.7 | D14: Refinery | E14: 35.38 | F14: 1,061.4
A15: Coal | C15: 347.0
A16: Iron Ore | C16: 1,286.4
A17: Water | B17: Water | C17: 891.9 | D17: Water Extractor | E17: 7.43 | F17: 148.7
A18: AI Limiter | B18: AI Limiter | C18: 6.0 | D18: Assembler | E18: 1.20 | F18: 18.0
A19: High-Speed Connector | B19: Silicone High-Speed Connector | C19: 9.0 | D19: Manufacturer | E19: 3.00 | F19: 165.0
A20: Plastic | C20: 84.0
A21: Crystal Oscillator | B21: Crystal Oscillator | C21: 12.0 | D21: Manufacturer | E21: 12.00 | F21: 660.1
A22: Copper Sheet | B22: Steamed Copper Sheet | C22: 30.0 | D22: Refinery | E22: 1.33 | F22: 40.0
A23: Quickwire | B23: Fused Quickwire | C23: 390.0 | D23: Assembler | E23: 4.33 | F23: 65.0
A24: Copper Ingot | B24: Copper Alloy Ingot | C24: 192.5 | D24: Foundry | E24: 1.93 | F24: 30.8
A25: Copper Ore | C25: 96.3
A26: Rubber | B26: Rubber | C26: 426.0 | D26: Refinery | E26: 21.30 | F26: 639.0
A27: Petroleum Coke | B27: Petroleum Coke | C27: 639.0 | D27: Refinery | E27: 5.33 | F27: 319.5
A28: Crude Oil | C28: 798.8
A29: Heavy Oil Residue | B29: Heavy Oil Residue | C29: 213.0 | D29: Refinery | E29: 5.33 | F29: 159.8
A30: Modular Frame | B30: Modular Frame | C30: 16.0 | D30: Assembler | E30: 8.00 | F30: 120.0
A31: Encased Industrial Beam | B31: Escased Industrial Pipe | C31: 20.0 | D31: Assembler | E31: 5.00 | F31: 75.0
A32: Concrete | B32: Concrete | C32: 144.0 | D32: Constructor | E32: 9.60 | F32: 38.4
A33: Reinforced Iron Plate | B33: Stitched Iron Plate | C33: 54.0 | D33: Assembler | E33: 9.60 | F33: 144.0
A34: Iron Rod | B34: Iron Rod | C34: 96.0 | D34: Constructor | E34: 6.40 | F34: 25.6
A35: Limestone | C35: 512.5
A36: Iron Plate | B36: Iron Plate | C36: 180.0 | D36: Constructor | E36: 9.00 | F36: 36.0
A37: Ocean | C37: 891.9
A38: Quartz Crystal | B38: Pure Quartz Crystal | C38: 216.0 | D38: Refinery | E38: 4.12 | F38: 123.5
A39: Raw Quartz | C39: 326.1
A40: Silica | B40: Cheap Silica | C40: 112.5 | D40: Assembler | E40: 4.29 | F40: 64.4
A41: Caterium Ingot | B41: Caterium Ingot | C41: 32.5 | D41: Smelter | E41: 2.17 | F41: 8.7
A42: Caterium Ore | C42: 97.5

Sheet Alt
A1: Item Name | B1: Options | C1: Choose Recipe
A2: Adaptive Control Unit | B2: 1 | C2: Adaptive Control Unit
A3: AI Limiter | B3: 1 | C3: AI Limiter
A4: Alclad Aluminum Sheet | B4: 1 | C4: Alclad Aluminum Sheet
A5: Alumina Solution | B5: 2 | C5: Sloppy Alumina
A6: Aluminum Casing | B6: 2 | C6: Alclad Casing
A7: Aluminum Ingot | B7: 2 | C7: Pure Aluminum Ingot
A8: Aluminum Scrap | B8: 3 | C8: Electrode Aluminum Scrap
A9: Assembly Director System | B9: 1 | C9: Assembly Director System
A10: Automated Wiring | B10: 2 | C10: Automated Wiring
A11: Battery | B11: 2 | C11: Battery
A12: Beacon | B12: 2 | C12: Beacon
A13: Black Powder | B13: 2 | C13: Fine Black Powder
A14: Cable | B14: 4 | C14: Cable
A15: Caterium Ingot | B15: 2 | C15: Caterium Ingot
A16: Circuit Board | B16: 4 | C16: Electrode Circuit Board
A17: Cluster Nobelisk | B17: 1 | C17: Cluster Nobelisk
A18: Compacted Coal | B18: 1 | C18: Compacted Coal
A19: Computer | B19: 3 | C19: Crystal Computer
A20: Concrete | B20: 1 | C20: Concrete
A21: Cooling System | B21: 2 | C21: Cooling Device
A22: Copper Ingot | B22: 3 | C22: Copper Alloy Ingot
A23: Copper Sheet | B23: 2 | C23: Steamed Copper Sheet
A24: Crystal Oscillator | B24: 2 | C24: Crystal Oscillator
A25: Electromagnetic Control Rod | B25: 2 | C25: Electromagnetic Control Rod
A26: Encased Industrial Beam | B26: 2 | C26: Escased Industrial Pipe
A27: Encased Plutonium Cell | B27: 2 | C27: Encased Plutonium Cell
A28: Encased Uranium Cell | B28: 2 | C28: Encased Uranium Cell
A29: Explosive Rebar | B29: 1 | C29: Explosive Rebar
A30: Fuel | B30: 2 | C30: Diluted Fuel
A31: Fused Modular Frame | B31: 2 | C31: Heat-Fused Frame
A32: Gas Filter | B32: 1 | C32: Gas Filter
A33: Gas Nobelisk | B33: 1 | C33: Gas Nobelisk
A34: Heat Sink | B34: 2 | C34: Heat Exchanger
A35: Heavy Modular Frame | B35: 3 | C35: Heavy Encased Frame
A36: Heavy Oil Residue | B36: 1 | C36: Heavy Oil Residue
A37: High-Speed Connector | B37: 2 | C37: Silicone High-Speed Connector
A38: Homing Rifle Ammo | B38: 1 | C38: Homing Rifle Ammo
A39: Iodine Infused Filter | B39: 1 | C39: Iodine Infused Filter
A40: Iron Ingot | B40: 3 | C40: Pure Iron Ingot
A41: Iron Plate | B41: 3 | C41: Iron Plate
A42: Iron Rebar | B42: 1 | C42: Iron Rebar
A43: Iron Rod | B43: 2 | C43: Iron Rod
A44: Magnetic Field Generator | B44: 1 | C44: Magnetic Field Generator
A45: Modular Engine | B45: 1 | C45: Modular Engine
A46: Modular Frame | B46: 3 | C46: Modular Frame
A47: Motor | B47: 3 | C47: Rigour Motor
A48: Nitric Acid | B48: 1 | C48: Nitric Acid
A49: Nobelisk | B49: 2 | C49: Nobelisk
A50: Non-fissile Uranium | B50: 2 | C50: Non-fissile Uranium
A51: Nuke Nobelisk | B51: 1 | C51: Nuke Nobelisk
A52: Packaged Fuel | B52: 1 | C52: Diluted Packaged Fuel
A53: Petroleum Coke | B53: 1 | C53: Petroleum Coke
A54: Plutonium Fuel Rod | B54: 2 | C54: Plutonium Fuel Unit
A55: Plutonium Pellet | B55: 1 | C55: Plutonium Pellet
A56: Pressure Conversion Cube | B56: 1 | C56: Pressure Conversion Cube
A57: Pulse Nobelisk | B57: 1 | C57: Pulse Nobelisk
A58: Quartz Crystal | B58: 2 | C58: Pure Quartz Crystal
A59: Quickwire | B59: 2 | C59: Fused Quickwire
A60: Radio Control Unit | B60: 3 | C60: Radio Control System
A61: Reinforced Iron Plate | B61: 4 | C61: Stitched Iron Plate
A62: Rifle Ammo | B62: 1 | C62: Rifle Ammo
A63: Rotor | B63: 3 | C63: Steel Rotor
A64: Rubber | B64: 1 | C64: Rubber
A65: Screw | B65: 3 | C65: Cast Screw
A66: Shatter Rebar | B66: 1 | C66: Shatter Rebar
A67: Silica | B67: 2 | C67: Cheap Silica
A68: Smart Plating | B68: 2 | C68: Smart Plating
A69: Smokeless Powder | B69: 1 | C69: Smokeless Powder
A70: Stator | B70: 2 | C70: Stator
A71: Steel Beam | B71: 1 | C71: Steel Beam
A72: Steel Ingot | B72: 4 | C72: Solid Steel Ingot
A73: Steel Pipe | B73: 1 | C73: Steel Pipe
A74: Stun Rebar | B74: 1 | C74: Stun Rebar
A75: Sulfuric Acid | B75: 1 | C75: Sulfuric Acid
A76: Supercomputer | B76: 3 | C76: Supercomputer
A77: Thermal Propulsion Rocket | B77: 1 | C77: Thermal Propulsion Rocket
A78: Turbo Motor | B78: 3 | C78: Turbo Electric Motor
A79: Turbo Rifle Ammo | B79: 2 | C79: Turbo Rifle Ammo
A80: Turbofuel | B80: 3 | C80: Turbofuel
A81: Uranium Fuel Rod | B81: 2 | C81: Uranium Fuel Rod
A82: Uranium Waste | B82: 1 | C82: Uranium Waste
A83: Versatile Framework | B83: 2 | C83: Versatile Framework
A84: Water | B84: 1 | C84: Water
A85: Wire | B85: 4 | C85: Iron Wire

Sheet Recipes
A1: RecipeName | B1: InputName | C1: InputPPM | D1: OutputName | E1: OutputPPM | F1: Machine | G1: Power Req'd | H1: Chosen
A2: Adaptive Control Unit | B2: Automated Wiring | C2: 7.5 | D2: Adaptive Control Unit | E2: 1 | F2: Manufacturer | G2: 55 | H2: =COUNTIF(Alt!C:C,A2) -> 1
A3: Adaptive Control Unit | B3: Circuit Board | C3: 5 | D3: Adaptive Control Unit | E3: 1 | F3: Manufacturer | G3: 55 | H3: =COUNTIF(Alt!C:C,A3) -> 1
A4: Adaptive Control Unit | B4: Heavy Modular Frame | C4: 1 | D4: Adaptive Control Unit | E4: 1 | F4: Manufacturer | G4: 55 | H4: =COUNTIF(Alt!C:C,A4) -> 1
A5: Adaptive Control Unit | B5: Computer | C5: 1 | D5: Adaptive Control Unit | E5: 1 | F5: Manufacturer | G5: 55 | H5: =COUNTIF(Alt!C:C,A5) -> 1
A6: AI Limiter | B6: Copper Sheet | C6: 25 | D6: AI Limiter | E6: 5 | F6: Assembler | G6: 15 | H6: =COUNTIF(Alt!C:C,A6) -> 1
A7: AI Limiter | B7: Quickwire | C7: 100 | D7: AI Limiter | E7: 5 | F7: Assembler | G7: 15 | H7: =COUNTIF(Alt!C:C,A7) -> 1
A8: Alclad Aluminum Sheet | B8: Aluminum Ingot | C8: 30 | D8: Alclad Aluminum Sheet | E8: 30 | F8: Assembler | G8: 30 | H8: =COUNTIF(Alt!C:C,A8) -> 1
A9: Alclad Aluminum Sheet | B9: Copper Ingot | C9: 10 | D9: Alclad Aluminum Sheet | E9: 30 | F9: Assembler | G9: 30 | H9: =COUNTIF(Alt!C:C,A9) -> 1
A10: Sloppy Alumina | B10: Bauxite | C10: 200 | D10: Alumina Solution | E10: 240 | F10: Refinery | G10: 30 | H10: =COUNTIF(Alt!C:C,A10) -> 1
A11: Sloppy Alumina | B11: Water | C11: 200 | D11: Alumina Solution | E11: 240 | F11: Refinery | G11: 30 | H11: =COUNTIF(Alt!C:C,A11) -> 1
A12: Alumina Solution | B12: Bauxite | C12: 120 | D12: Alumina Solution | E12: 120 | F12: Refinery | G12: 30 | H12: =COUNTIF(Alt!C:C,A12) -> 0
A13: Alumina Solution | B13: Water | C13: 180 | D13: Alumina Solution | E13: 120 | F13: Refinery | G13: 30 | H13: =COUNTIF(Alt!C:C,A13) -> 0
A14: Alclad Casing | B14: Aluminum Ingot | C14: 150 | D14: Aluminum Casing | E14: 112.5 | F14: Assembler | G14: 15 | H14: =COUNTIF(Alt!C:C,A14) -> 1
A15: Alclad Casing | B15: Copper Ingot | C15: 75 | D15: Aluminum Casing | E15: 112.5 | F15: Assembler | G15: 15 | H15: =COUNTIF(Alt!C:C,A15) -> 1
A16: Aluminum Casing | B16: Aluminum Ingot | C16: 90 | D16: Aluminum Casing | E16: 60 | F16: Constructor | G16: 4 | H16: =COUNTIF(Alt!C:C,A16) -> 0
A17: Pure Aluminum Ingot | B17: Aluminum Scrap | C17: 60 | D17: Aluminum Ingot | E17: 30 | F17: Smelter | G17: 4 | H17: =COUNTIF(Alt!C:C,A17) -> 1
A18: Aluminum Ingot | B18: Aluminum Scrap | C18: 90 | D18: Aluminum Ingot | E18: 60 | F18: Foundry | G18: 16 | H18: =COUNTIF(Alt!C:C,A18) -> 0
A19: Aluminum Ingot | B19: Silica | C19: 75 | D19: Aluminum Ingot | E19: 60 | F19: Foundry | G19: 16 | H19: =COUNTIF(Alt!C:C,A19) -> 0
A20: Electrode Aluminum Scrap | B20: Alumina Solution | C20: 180 | D20: Aluminum Scrap | E20: 300 | F20: Refinery | G20: 30 | H20: =COUNTIF(Alt!C:C,A20) -> 1
A21: Electrode Aluminum Scrap | B21: Petroleum Coke | C21: 60 | D21: Aluminum Scrap | E21: 300 | F21: Refinery | G21: 30 | H21: =COUNTIF(Alt!C:C,A21) -> 1
A22: Aluminum Scrap | B22: Alumina Solution | C22: 240 | D22: Aluminum Scrap | E22: 360 | F22: Refinery | G22: 30 | H22: =COUNTIF(Alt!C:C,A22) -> 0
A23: Aluminum Scrap | B23: Coal | C23: 120 | D23: Aluminum Scrap | E23: 360 | F23: Refinery | G23: 30 | H23: =COUNTIF(Alt!C:C,A23) -> 0
A24: Instant Scrap | B24: Bauxite | C24: 150 | D24: Aluminum Scrap | E24: 300 | F24: Blender | G24: 75 | H24: =COUNTIF(Alt!C:C,A24) -> 0
A25: Instant Scrap | B25: Coal | C25: 100 | D25: Aluminum Scrap | E25: 300 | F25: Blender | G25: 75 | H25: =COUNTIF(Alt!C:C,A25) -> 0
A26: Instant Scrap | B26: Sulfuric Acid | C26: 50 | D26: Aluminum Scrap | E26: 300 | F26: Blender | G26: 75 | H26: =COUNTIF(Alt!C:C,A26) -> 0
A27: Instant Scrap | B27: Water | C27: 110 | D27: Aluminum Scrap | E27: 300 | F27: Blender | G27: 75 | H27: =COUNTIF(Alt!C:C,A27) -> 0
A28: Assembly Director System | B28: Adaptive Control Unit | C28: 1.5 | D28: Assembly Director System | E28: 0.75 | F28: Assembler | G28: 15 | H28: =COUNTIF(Alt!C:C,A28) -> 1
A29: Assembly Director System | B29: Supercomputer | C29: 0.75 | D29: Assembly Director System | E29: 0.75 | F29: Assembler | G29: 15 | H29: =COUNTIF(Alt!C:C,A29) -> 1
A30: Automated Wiring | B30: Stator | C30: 2.5 | D30: Automated Wiring | E30: 2.5 | F30: Assembler | G30: 15 | H30: =COUNTIF(Alt!C:C,A30) -> 1
A31: Automated Wiring | B31: Cable | C31: 50 | D31: Automated Wiring | E31: 2.5 | F31: Assembler | G31: 15 | H31: =COUNTIF(Alt!C:C,A31) -> 1
A32: High-Speed Wiring | B32: Stator | C32: 3.75 | D32: Automated Wiring | E32: 7.5 | F32: Manufacturer | G32: 55 | H32: =COUNTIF(Alt!C:C,A32) -> 0
A33: High-Speed Wiring | B33: Wire | C33: 75 | D33: Automated Wiring | E33: 7.5 | F33: Manufacturer | G33: 55 | H33: =COUNTIF(Alt!C:C,A33) -> 0
A34: High-Speed Wiring | B34: High-Speed Connector | C34: 1.875 | D34: Automated Wiring | E34: 7.5 | F34: Manufacturer | G34: 55 | H34: =COUNTIF(Alt!C:C,A34) -> 0
A35: Battery | B35: Sulfuric Acid | C35: 50 | D35: Battery | E35: 20 | F35: Blender | G35: 75 | H35: =COUNTIF(Alt!C:C,A35) -> 1
A36: Battery | B36: Alumina Solution | C36: 40 | D36: Battery | E36: 20 | F36: Blender | G36: 75 | H36: =COUNTIF(Alt!C:C,A36) -> 1
A37: Battery | B37: Aluminum Casing | C37: 20 | D37: Battery | E37: 20 | F37: Blender | G37: 75 | H37: =COUNTIF(Alt!C:C,A37) -> 1
A38: Classic Battery | B38: Sulfur | C38: 45 | D38: Battery | E38: 30 | F38: Manufacturer | G38: 55 | H38: =COUNTIF(Alt!C:C,A38) -> 0
A39: Classic Battery | B39: Alclad Aluminum Sheet | C39: 52.5 | D39: Battery | E39: 30 | F39: Manufacturer | G39: 55 | H39: =COUNTIF(Alt!C:C,A39) -> 0
A40: Classic Battery | B40: Plastic | C40: 60 | D40: Battery | E40: 30 | F40: Manufacturer | G40: 55 | H40: =COUNTIF(Alt!C:C,A40) -> 0
A41: Classic Battery | B41: Wire | C41: 90 | D41: Battery | E41: 30 | F41: Manufacturer | G41: 55 | H41: =COUNTIF(Alt!C:C,A41) -> 0
A42: Beacon | B42: Iron Plate | C42: 22.5 | D42: Beacon | E42: 7.5 | F42: Manufacturer | G42: 55 | H42: =COUNTIF(Alt!C:C,A42) -> 1
A43: Beacon | B43: Iron Rod | C43: 7.5 | D43: Beacon | E43: 7.5 | F43: Manufacturer | G43: 55 | H43: =COUNTIF(Alt!C:C,A43) -> 1
A44: Beacon | B44: Wire | C44: 112.5 | D44: Beacon | E44: 7.5 | F44: Manufacturer | G44: 55 | H44: =COUNTIF(Alt!C:C,A44) -> 1
A45: Beacon | B45: Cable | C45: 15 | D45: Beacon | E45: 7.5 | F45: Manufacturer | G45: 55 | H45: =COUNTIF(Alt!C:C,A45) -> 1
A46: Crystal Beacon | B46: Steel Beam | C46: 2 | D46: Beacon | E46: 10 | F46: Manufacturer | G46: 55 | H46: =COUNTIF(Alt!C:C,A46) -> 0
A47: Crystal Beacon | B47: Steel Pipe | C47: 8 | D47: Beacon | E47: 10 | F47: Manufacturer | G47: 55 | H47: =COUNTIF(Alt!C:C,A47) -> 0
A48: Crystal Beacon | B48: Crystal Oscillator | C48: 0.5 | D48: Beacon | E48: 10 | F48: Manufacturer | G48: 55 | H48: =COUNTIF(Alt!C:C,A48) -> 0
A49: Fine Black Powder | B49: Sulfur | C49: 7.5 | D49: Black Powder | E49: 15 | F49: Assembler | G49: 15 | H49: =COUNTIF(Alt!C:C,A49) -> 1
A50: Fine Black Powder | B50: Compacted Coal | C50: 3.75 | D50: Black Powder | E50: 15 | F50: Assembler | G50: 15 | H50: =COUNTIF(Alt!C:C,A50) -> 1
A51: Black Powder | B51: Coal | C51: 7.5 | D51: Black Powder | E51: 7.5 | F51: Assembler | G51: 15 | H51: =COUNTIF(Alt!C:C,A51) -> 0
A52: Black Powder | B52: Sulfur | C52: 15 | D52: Black Powder | E52: 7.5 | F52: Assembler | G52: 15 | H52: =COUNTIF(Alt!C:C,A52) -> 0
A53: Cable | B53: Wire | C53: 60 | D53: Cable | E53: 30 | F53: Constructor | G53: 4 | H53: =COUNTIF(Alt!C:C,A53) -> 1
A54: Insulated Cable | B54: Wire | C54: 45 | D54: Cable | E54: 100 | F54: Assembler | G54: 15 | H54: =COUNTIF(Alt!C:C,A54) -> 0
A55: Insulated Cable | B55: Rubber | C55: 45 | D55: Cable | E55: 100 | F55: Assembler | G55: 15 | H55: =COUNTIF(Alt!C:C,A55) -> 0
A56: Coated Cable | B56: Wire | C56: 37.5 | D56: Cable | E56: 67.5 | F56: Refinery | G56: 30 | H56: =COUNTIF(Alt!C:C,A56) -> 0
A57: Coated Cable | B57: Heavy Oil Residue | C57: 15 | D57: Cable | E57: 67.5 | F57: Refinery | G57: 30 | H57: =COUNTIF(Alt!C:C,A57) -> 0
A58: Quickwire Cable | B58: Quickwire | C58: 7.5 | D58: Cable | E58: 27.5 | F58: Assembler | G58: 15 | H58: =COUNTIF(Alt!C:C,A58) -> 0
A59: Quickwire Cable | B59: Rubber | C59: 5 | D59: Cable | E59: 27.5 | F59: Assembler | G59: 15 | H59: =COUNTIF(Alt!C:C,A59) -> 0
A60: Caterium Ingot | B60: Caterium Ore | C60: 45 | D60: Caterium Ingot | E60: 15 | F60: Smelter | G60: 4 | H60: =COUNTIF(Alt!C:C,A60) -> 1
A61: Pure Caterium Ingot | B61: Caterium Ore | C61: 24 | D61: Caterium Ingot | E61: 12 | F61: Refinery | G61: 30 | H61: =COUNTIF(Alt!C:C,A61) -> 0
A62: Pure Caterium Ingot | B62: Water | C62: 24 | D62: Caterium Ingot | E62: 12 | F62: Refinery | G62: 30 | H62: =COUNTIF(Alt!C:C,A62) -> 0
A63: Electrode Circuit Board | B63: Rubber | C63: 30 | D63: Circuit Board | E63: 5 | F63: Assembler | G63: 15 | H63: =COUNTIF(Alt!C:C,A63) -> 1
A64: Electrode Circuit Board | B64: Petroleum Coke | C64: 45 | D64: Circuit Board | E64: 5 | F64: Assembler | G64: 15 | H64: =COUNTIF(Alt!C:C,A64) -> 1
A65: Silicone Circuit Board | B65: Copper Sheet | C65: 27.5 | D65: Circuit Board | E65: 12.5 | F65: Assembler | G65: 15 | H65: =COUNTIF(Alt!C:C,A65) -> 0
A66: Silicone Circuit Board | B66: Silica | C66: 27.5 | D66: Circuit Board | E66: 12.5 | F66: Assembler | G66: 15 | H66: =COUNTIF(Alt!C:C,A66) -> 0
A67: Caterium Circuit Board | B67: Plastic | C67: 12.5 | D67: Circuit Board | E67: 8.75 | F67: Assembler | G67: 15 | H67: =COUNTIF(Alt!C:C,A67) -> 0
A68: Caterium Circuit Board | B68: Quickwire | C68: 37.5 | D68: Circuit Board | E68: 8.75 | F68: Assembler | G68: 15 | H68: =COUNTIF(Alt!C:C,A68) -> 0
A69: Circuit Board | B69: Copper Sheet | C69: 15 | D69: Circuit Board | E69: 7.5 | F69: Assembler | G69: 15 | H69: =COUNTIF(Alt!C:C,A69) -> 0
A70: Circuit Board | B70: Plastic | C70: 30 | D70: Circuit Board | E70: 7.5 | F70: Assembler | G70: 15 | H70: =COUNTIF(Alt!C:C,A70) -> 0
A71: Cluster Nobelisk | B71: Nobelisk | C71: 7.5 | D71: Cluster Nobelisk | E71: 2.5 | F71: Assembler | G71: 15 | H71: =COUNTIF(Alt!C:C,A71) -> 1
A72: Cluster Nobelisk | B72: Smokeless Powder | C72: 10 | D72: Cluster Nobelisk | E72: 2.5 | F72: Assembler | G72: 15 | H72: =COUNTIF(Alt!C:C,A72) -> 1
A73: Compacted Coal | B73: Coal | C73: 25 | D73: Compacted Coal | E73: 25 | F73: Assembler | G73: 15 | H73: =COUNTIF(Alt!C:C,A73) -> 1
A74: Compacted Coal | B74: Sulfur | C74: 25 | D74: Compacted Coal | E74: 25 | F74: Assembler | G74: 15 | H74: =COUNTIF(Alt!C:C,A74) -> 1
A75: Crystal Computer | B75: Circuit Board | C75: 7.5 | D75: Computer | E75: 2.8125 | F75: Assembler | G75: 15 | H75: =COUNTIF(Alt!C:C,A75) -> 1
A76: Crystal Computer | B76: Crystal Oscillator | C76: 2.813 | D76: Computer | E76: 2.8125 | F76: Assembler | G76: 15 | H76: =COUNTIF(Alt!C:C,A76) -> 1
A77: Caterium Computer | B77: Circuit Board | C77: 26.25 | D77: Computer | E77: 3.75 | F77: Manufacturer | G77: 55 | H77: =COUNTIF(Alt!C:C,A77) -> 0
A78: Caterium Computer | B78: Quickwire | C78: 105 | D78: Computer | E78: 3.75 | F78: Manufacturer | G78: 55 | H78: =COUNTIF(Alt!C:C,A78) -> 0
A79: Caterium Computer | B79: Rubber | C79: 45 | D79: Computer | E79: 3.75 | F79: Manufacturer | G79: 55 | H79: =COUNTIF(Alt!C:C,A79) -> 0
A80: Computer | B80: Circuit Board | C80: 25 | D80: Computer | E80: 2.5 | F80: Manufacturer | G80: 55 | H80: =COUNTIF(Alt!C:C,A80) -> 0
A81: Computer | B81: Cable | C81: 22.5 | D81: Computer | E81: 2.5 | F81: Manufacturer | G81: 55 | H81: =COUNTIF(Alt!C:C,A81) -> 0
A82: Computer | B82: Plastic | C82: 45 | D82: Computer | E82: 2.5 | F82: Manufacturer | G82: 55 | H82: =COUNTIF(Alt!C:C,A82) -> 0
A83: Computer | B83: Screw | C83: 130 | D83: Computer | E83: 2.5 | F83: Manufacturer | G83: 55 | H83: =COUNTIF(Alt!C:C,A83) -> 0
A84: Concrete | B84: Limestone | C84: 45 | D84: Concrete | E84: 15 | F84: Constructor | G84: 4 | H84: 0
A85: Cooling Device | B85: Heat Sink | C85: 9.375 | D85: Cooling System | E85: 3.75 | F85: Blender | G85: 75 | H85: =COUNTIF(Alt!C:C,A85) -> 1
A86: Cooling Device | B86: Motor | C86: 1.875 | D86: Cooling System | E86: 3.75 | F86: Blender | G86: 75 | H86: =COUNTIF(Alt!C:C,A86) -> 1
A87: Cooling Device | B87: Nitrogen Gas | C87: 45 | D87: Cooling System | E87: 3.75 | F87: Blender | G87: 75 | H87: =COUNTIF(Alt!C:C,A87) -> 1
A88: Cooling System | B88: Heat Sink | C88: 12 | D88: Cooling System | E88: 6 | F88: Blender | G88: 75 | H88: =COUNTIF(Alt!C:C,A88) -> 0
A89: Cooling System | B89: Rubber | C89: 12 | D89: Cooling System | E89: 6 | F89: Blender | G89: 75 | H89: =COUNTIF(Alt!C:C,A89) -> 0
A90: Cooling System | B90: Water | C90: 30 | D90: Cooling System | E90: 6 | F90: Blender | G90: 75 | H90: =COUNTIF(Alt!C:C,A90) -> 0
A91: Cooling System | B91: Nitrogen Gas | C91: 150 | D91: Cooling System | E91: 6 | F91: Blender | G91: 75 | H91: =COUNTIF(Alt!C:C,A91) -> 0
A92: Copper Alloy Ingot | B92: Copper Ore | C92: 50 | D92: Copper Ingot | E92: 100 | F92: Foundry | G92: 16 | H92: =COUNTIF(Alt!C:C,A92) -> 1
A93: Copper Alloy Ingot | B93: Iron Ore | C93: 25 | D93: Copper Ingot | E93: 100 | F93: Foundry | G93: 16 | H93: =COUNTIF(Alt!C:C,A93) -> 1
A94: Copper Ingot | B94: Copper Ore | C94: 30 | D94: Copper Ingot | E94: 30 | F94: Smelter | G94: 4 | H94: =COUNTIF(Alt!C:C,A94) -> 0
A95: Pure Copper Ingot | B95: Copper Ore | C95: 15 | D95: Copper Ingot | E95: 37.5 | F95: Refinery | G95: 30 | H95: =COUNTIF(Alt!C:C,A95) -> 0
A96: Pure Copper Ingot | B96: Water | C96: 10 | D96: Copper Ingot | E96: 37.5 | F96: Refinery | G96: 30 | H96: =COUNTIF(Alt!C:C,A96) -> 0
A97: Copper Powder | B97: Copper Ingot | C97: 300 | D97: Copper Powder | E97: 50 | F97: Constructor | G97: 4 | H97: =COUNTIF(Alt!C:C,A97) -> 0
A98: Steamed Copper Sheet | B98: Copper Ingot | C98: 22.5 | D98: Copper Sheet | E98: 22.5 | F98: Refinery | G98: 30 | H98: =COUNTIF(Alt!C:C,A98) -> 1
A99: Steamed Copper Sheet | B99: Water | C99: 22.5 | D99: Copper Sheet | E99: 22.5 | F99: Refinery | G99: 30 | H99: =COUNTIF(Alt!C:C,A99) -> 1
A100: Copper Sheet | B100: Copper Ingot | C100: 20 | D100: Copper Sheet | E100: 10 | F100: Constructor | G100: 4 | H100: =COUNTIF(Alt!C:C,A100) -> 0
A101: Crystal Oscillator | B101: Quartz Crystal | C101: 18 | D101: Crystal Oscillator | E101: 1 | F101: Manufacturer | G101: 55 | H101: =COUNTIF(Alt!C:C,A101) -> 1
A102: Crystal Oscillator | B102: Cable | C102: 14 | D102: Crystal Oscillator | E102: 1 | F102: Manufacturer | G102: 55 | H102: =COUNTIF(Alt!C:C,A102) -> 1
A103: Crystal Oscillator | B103: Reinforced Iron Plate | C103: 2.5 | D103: Crystal Oscillator | E103: 1 | F103: Manufacturer | G103: 55 | H103: =COUNTIF(Alt!C:C,A103) -> 1
A104: Insulated Crystal Oscillator | B104: Quartz Crystal | C104: 18.75 | D104: Crystal Oscillator | E104: 1.875 | F104: Manufacturer | G104: 55 | H104: =COUNTIF(Alt!C:C,A104) -> 0
A105: Insulated Crystal Oscillator | B105: Rubber | C105: 13.125 | D105: Crystal Oscillator | E105: 1.875 | F105: Manufacturer | G105: 55 | H105: =COUNTIF(Alt!C:C,A105) -> 0
A106: Insulated Crystal Oscillator | B106: AI Limiter | C106: 1.875 | D106: Crystal Oscillator | E106: 1.875 | F106: Manufacturer | G106: 55 | H106: =COUNTIF(Alt!C:C,A106) -> 0
A107: Electromagnetic Control Rod | B107: Stator | C107: 6 | D107: Electromagnetic Control Rod | E107: 4 | F107: Assembler | G107: 15 | H107: =COUNTIF(Alt!C:C,A107) -> 1
A108: Electromagnetic Control Rod | B108: AI Limiter | C108: 4 | D108: Electromagnetic Control Rod | E108: 4 | F108: Assembler | G108: 15 | H108: =COUNTIF(Alt!C:C,A108) -> 1
A109: Electromagnetic Connection Rod | B109: Stator | C109: 8 | D109: Electromagnetic Control Rod | E109: 8 | F109: Assembler | G109: 15 | H109: =COUNTIF(Alt!C:C,A109) -> 0
A110: Electromagnetic Connection Rod | B110: High-Speed Connector | C110: 4 | D110: Electromagnetic Control Rod | E110: 8 | F110: Assembler | G110: 15 | H110: =COUNTIF(Alt!C:C,A110) -> 0
A111: Escased Industrial Pipe | B111: Steel Pipe | C111: 28 | D111: Encased Industrial Beam | E111: 4 | F111: Assembler | G111: 15 | H111: =COUNTIF(Alt!C:C,A111) -> 1
A112: Escased Industrial Pipe | B112: Concrete | C112: 20 | D112: Encased Industrial Beam | E112: 4 | F112: Assembler | G112: 15 | H112: =COUNTIF(Alt!C:C,A112) -> 1
A113: Encased Industrial Beam | B113: Steel Beam | C113: 24 | D113: Encased Industrial Beam | E113: 6 | F113: Assembler | G113: 15 | H113: =COUNTIF(Alt!C:C,A113) -> 0
A114: Encased Industrial Beam | B114: Concrete | C114: 30 | D114: Encased Industrial Beam | E114: 6 | F114: Assembler | G114: 15 | H114: =COUNTIF(Alt!C:C,A114) -> 0
A115: Encased Plutonium Cell | B115: Plutonium Pellet | C115: 10 | D115: Encased Plutonium Cell | E115: 5 | F115: Assembler | G115: 15 | H115: =COUNTIF(Alt!C:C,A115) -> 1
A116: Encased Plutonium Cell | B116: Concrete | C116: 20 | D116: Encased Plutonium Cell | E116: 5 | F116: Assembler | G116: 15 | H116: =COUNTIF(Alt!C:C,A116) -> 1
A117: Instant Plutonium Cell | B117: Non-fissile Uranium | C117: 75 | D117: Encased Plutonium Cell | E117: 10 | F117: Particle Accelerator | G117: 1000 | H117: =COUNTIF(Alt!C:C,A117) -> 0
A118: Instant Plutonium Cell | B118: Aluminum Casing | C118: 10 | D118: Encased Plutonium Cell | E118: 10 | F118: Particle Accelerator | G118: 1000 | H118: =COUNTIF(Alt!C:C,A118) -> 0
A119: Encased Uranium Cell | B119: Uranium | C119: 50 | D119: Encased Uranium Cell | E119: 25 | F119: Blender | G119: 75 | H119: =COUNTIF(Alt!C:C,A119) -> 1
A120: Encased Uranium Cell | B120: Concrete | C120: 15 | D120: Encased Uranium Cell | E120: 25 | F120: Blender | G120: 75 | H120: =COUNTIF(Alt!C:C,A120) -> 1
A121: Encased Uranium Cell | B121: Sulfuric Acid | C121: 30 | D121: Encased Uranium Cell | E121: 25 | F121: Blender | G121: 75 | H121: =COUNTIF(Alt!C:C,A121) -> 1
A122: Infused Uranium Cell | B122: Uranium | C122: 25 | D122: Encased Uranium Cell | E122: 20 | F122: Manufacturer | G122: 55 | H122: =COUNTIF(Alt!C:C,A122) -> 0
A123: Infused Uranium Cell | B123: Silica | C123: 15 | D123: Encased Uranium Cell | E123: 20 | F123: Manufacturer | G123: 55 | H123: =COUNTIF(Alt!C:C,A123) -> 0
A124: Infused Uranium Cell | B124: Sulfur | C124: 25 | D124: Encased Uranium Cell | E124: 20 | F124: Manufacturer | G124: 55 | H124: =COUNTIF(Alt!C:C,A124) -> 0
A125: Infused Uranium Cell | B125: Quickwire | C125: 75 | D125: Encased Uranium Cell | E125: 20 | F125: Manufacturer | G125: 55 | H125: =COUNTIF(Alt!C:C,A125) -> 0
A126: Explosive Rebar | B126: Iron Rebar | C126: 10 | D126: Explosive Rebar | E126: 5 | F126: Manufacturer | G126: 55 | H126: =COUNTIF(Alt!C:C,A126) -> 1
A127: Explosive Rebar | B127: Smokeless Powder | C127: 10 | D127: Explosive Rebar | E127: 5 | F127: Manufacturer | G127: 55 | H127: =COUNTIF(Alt!C:C,A127) -> 1
A128: Explosive Rebar | B128: Steel Pipe | C128: 10 | D128: Explosive Rebar | E128: 5 | F128: Manufacturer | G128: 55 | H128: =COUNTIF(Alt!C:C,A128) -> 1
A129: Diluted Fuel | B129: Heavy Oil Residue | C129: 50 | D129: Fuel | E129: 100 | F129: Blender | G129: 75 | H129: =COUNTIF(Alt!C:C,A129) -> 1
A130: Diluted Fuel | B130: Water | C130: 100 | D130: Fuel | E130: 100 | F130: Blender | G130: 75 | H130: =COUNTIF(Alt!C:C,A130) -> 1
A131: Unpackage Fuel | B131: Packaged Fuel | C131: 60 | D131: Fuel | E131: 60 | F131: Packager | G131: 10 | H131: =COUNTIF(Alt!C:C,A131) -> 0
A132: Heat-Fused Frame | B132: Heavy Modular Frame | C132: 3 | D132: Fused Modular Frame | E132: 3 | F132: Blender | G132: 75 | H132: =COUNTIF(Alt!C:C,A132) -> 1
A133: Heat-Fused Frame | B133: Aluminum Ingot | C133: 150 | D133: Fused Modular Frame | E133: 3 | F133: Blender | G133: 75 | H133: =COUNTIF(Alt!C:C,A133) -> 1
A134: Heat-Fused Frame | B134: Nitric Acid | C134: 24 | D134: Fused Modular Frame | E134: 3 | F134: Blender | G134: 75 | H134: =COUNTIF(Alt!C:C,A134) -> 1
A135: Heat-Fused Frame | B135: Fuel | C135: 30 | D135: Fused Modular Frame | E135: 3 | F135: Blender | G135: 75 | H135: =COUNTIF(Alt!C:C,A135) -> 1
A136: Fused Modular Frame | B136: Heavy Modular Frame | C136: 1.5 | D136: Fused Modular Frame | E136: 1.5 | F136: Blender | G136: 75 | H136: =COUNTIF(Alt!C:C,A136) -> 0
A137: Fused Modular Frame | B137: Aluminum Casing | C137: 75 | D137: Fused Modular Frame | E137: 1.5 | F137: Blender | G137: 75 | H137: =COUNTIF(Alt!C:C,A137) -> 0
A138: Fused Modular Frame | B138: Nitrogen Gas | C138: 37.5 | D138: Fused Modular Frame | E138: 1.5 | F138: Blender | G138: 75 | H138: =COUNTIF(Alt!C:C,A138) -> 0
A139: Gas Filter | B139: Coal | C139: 37.5 | D139: Gas Filter | E139: 7.5 | F139: Manufacturer | G139: 55 | H139: =COUNTIF(Alt!C:C,A139) -> 1
A140: Gas Filter | B140: Rubber | C140: 15 | D140: Gas Filter | E140: 7.5 | F140: Manufacturer | G140: 55 | H140: =COUNTIF(Alt!C:C,A140) -> 1
A141: Gas Filter | B141: Fabric | C141: 15 | D141: Gas Filter | E141: 7.5 | F141: Manufacturer | G141: 55 | H141: =COUNTIF(Alt!C:C,A141) -> 1
A142: Gas Nobelisk | B142: Nobelisk | C142: 5 | D142: Gas Nobelisk | E142: 5 | F142: Assembler | G142: 15 | H142: =COUNTIF(Alt!C:C,A142) -> 1
A143: Gas Nobelisk | B143: Biomass | C143: 50 | D143: Gas Nobelisk | E143: 5 | F143: Assembler | G143: 15 | H143: =COUNTIF(Alt!C:C,A143) -> 1
A144: Heat Exchanger | B144: Aluminum Casing | C144: 30 | D144: Heat Sink | E144: 10 | F144: Assembler | G144: 15 | H144: =COUNTIF(Alt!C:C,A144) -> 1
A145: Heat Exchanger | B145: Rubber | C145: 30 | D145: Heat Sink | E145: 10 | F145: Assembler | G145: 15 | H145: =COUNTIF(Alt!C:C,A145) -> 1
A146: Heat Sink | B146: Alclad Aluminum Sheet | C146: 37.5 | D146: Heat Sink | E146: 7.5 | F146: Assembler | G146: 15 | H146: =COUNTIF(Alt!C:C,A146) -> 0
A147: Heat Sink | B147: Copper Sheet | C147: 22.5 | D147: Heat Sink | E147: 7.5 | F147: Assembler | G147: 15 | H147: =COUNTIF(Alt!C:C,A147) -> 0
A148: Heavy Encased Frame | B148: Modular Frame | C148: 7.5 | D148: Heavy Modular Frame | E148: 2.8125 | F148: Manufacturer | G148: 55 | H148: =COUNTIF(Alt!C:C,A148) -> 1
A149: Heavy Encased Frame | B149: Encased Industrial Beam | C149: 9.375 | D149: Heavy Modular Frame | E149: 2.8125 | F149: Manufacturer | G149: 55 | H149: =COUNTIF(Alt!C:C,A149) -> 1
A150: Heavy Encased Frame | B150: Steel Pipe | C150: 33.75 | D150: Heavy Modular Frame | E150: 2.8125 | F150: Manufacturer | G150: 55 | H150: =COUNTIF(Alt!C:C,A150) -> 1
A151: Heavy Encased Frame | B151: Concrete | C151: 20.625 | D151: Heavy Modular Frame | E151: 2.8125 | F151: Manufacturer | G151: 55 | H151: =COUNTIF(Alt!C:C,A151) -> 1
A152: Heavy Modular Frame | B152: Modular Frame | C152: 10 | D152: Heavy Modular Frame | E152: 2 | F152: Manufacturer | G152: 55 | H152: =COUNTIF(Alt!C:C,A152) -> 0
A153: Heavy Modular Frame | B153: Steel Pipe | C153: 30 | D153: Heavy Modular Frame | E153: 2 | F153: Manufacturer | G153: 55 | H153: =COUNTIF(Alt!C:C,A153) -> 0
A154: Heavy Modular Frame | B154: Encased Industrial Beam | C154: 10 | D154: Heavy Modular Frame | E154: 2 | F154: Manufacturer | G154: 55 | H154: =COUNTIF(Alt!C:C,A154) -> 0
A155: Heavy Modular Frame | B155: Screw | C155: 200 | D155: Heavy Modular Frame | E155: 2 | F155: Manufacturer | G155: 55 | H155: =COUNTIF(Alt!C:C,A155) -> 0
A156: Heavy Flexible Frame | B156: Modular Frame | C156: 18.75 | D156: Heavy Modular Frame | E156: 3.75 | F156: Manufacturer | G156: 55 | H156: =COUNTIF(Alt!C:C,A156) -> 0
A157: Heavy Flexible Frame | B157: Encased Industrial Beam | C157: 11.25 | D157: Heavy Modular Frame | E157: 3.75 | F157: Manufacturer | G157: 55 | H157: =COUNTIF(Alt!C:C,A157) -> 0
A158: Heavy Flexible Frame | B158: Rubber | C158: 75 | D158: Heavy Modular Frame | E158: 3.75 | F158: Manufacturer | G158: 55 | H158: =COUNTIF(Alt!C:C,A158) -> 0
A159: Heavy Flexible Frame | B159: Screw | C159: 390 | D159: Heavy Modular Frame | E159: 3.75 | F159: Manufacturer | G159: 55 | H159: =COUNTIF(Alt!C:C,A159) -> 0
A160: Heavy Oil Residue | B160: Crude Oil | C160: 30 | D160: Heavy Oil Residue | E160: 40 | F160: Refinery | G160: 30 | H160: =COUNTIF(Alt!C:C,A160) -> 1
A161: Silicone High-Speed Connector | B161: Quickwire | C161: 90 | D161: High-Speed Connector | E161: 3 | F161: Manufacturer | G161: 55 | H161: =COUNTIF(Alt!C:C,A161) -> 1
A162: Silicone High-Speed Connector | B162: Silica | C162: 37.5 | D162: High-Speed Connector | E162: 3 | F162: Manufacturer | G162: 55 | H162: =COUNTIF(Alt!C:C,A162) -> 1
A163: Silicone High-Speed Connector | B163: Circuit Board | C163: 3 | D163: High-Speed Connector | E163: 3 | F163: Manufacturer | G163: 55 | H163: =COUNTIF(Alt!C:C,A163) -> 1
A164: High-Speed Connector | B164: Quickwire | C164: 210 | D164: High-Speed Connector | E164: 3.8 | F164: Manufacturer | G164: 55 | H164: =COUNTIF(Alt!C:C,A164) -> 0
A165: High-Speed Connector | B165: Cable | C165: 37.5 | D165: High-Speed Connector | E165: 3.8 | F165: Manufacturer | G165: 55 | H165: =COUNTIF(Alt!C:C,A165) -> 0
A166: High-Speed Connector | B166: Circuit Board | C166: 3.75 | D166: High-Speed Connector | E166: 3.8 | F166: Manufacturer | G166: 55 | H166: =COUNTIF(Alt!C:C,A166) -> 0
A167: Homing Rifle Ammo | B167: Rifle Ammo | C167: 50 | D167: Homing Rifle Ammo | E167: 10 | F167: Assembler | G167: 15
A168: Homing Rifle Ammo | B168: High-Speed Connector | C168: 2.5 | D168: Homing Rifle Ammo | E168: 10 | F168: Assembler | G168: 15
A169: Iodine Infused Filter | B169: Gas Filter | C169: 3.75 | D169: Iodine Infused Filter | E169: 3.75 | F169: Manufacturer | G169: 55 | H169: =COUNTIF(Alt!C:C,A169) -> 1
A170: Iodine Infused Filter | B170: Quickwire | C170: 30 | D170: Iodine Infused Filter | E170: 3.75 | F170: Manufacturer | G170: 55 | H170: =COUNTIF(Alt!C:C,A170) -> 1
A171: Iodine Infused Filter | B171: Aluminum Casing | C171: 3.75 | D171: Iodine Infused Filter | E171: 3.75 | F171: Manufacturer | G171: 55 | H171: =COUNTIF(Alt!C:C,A171) -> 1
A172: Pure Iron Ingot | B172: Iron Ore | C172: 35 | D172: Iron Ingot | E172: 65 | F172: Refinery | G172: 30 | H172: =COUNTIF(Alt!C:C,A172) -> 1
A173: Pure Iron Ingot | B173: Water | C173: 20 | D173: Iron Ingot | E173: 65 | F173: Refinery | G173: 30 | H173: =COUNTIF(Alt!C:C,A173) -> 1
A174: Iron Alloy Ingot | B174: Iron Ore | C174: 20 | D174: Iron Ingot | E174: 50 | F174: Foundry | G174: 16 | H174: =COUNTIF(Alt!C:C,A174) -> 0
A175: Iron Alloy Ingot | B175: Copper Ore | C175: 20 | D175: Iron Ingot | E175: 50 | F175: Foundry | G175: 16 | H175: =COUNTIF(Alt!C:C,A175) -> 0
A176: Iron Ingot | B176: Iron Ore | C176: 30 | D176: Iron Ingot | E176: 30 | F176: Smelter | G176: 4 | H176: =COUNTIF(Alt!C:C,A176) -> 0
A177: Iron Plate | B177: Iron Ingot | C177: 30 | D177: Iron Plate | E177: 20 | F177: Constructor | G177: 4 | H177: =COUNTIF(Alt!C:C,A177) -> 1
A178: Coated Iron Plate | B178: Iron Ingot | C178: 50 | D178: Iron Plate | E178: 75 | F178: Assembler | G178: 15 | H178: =COUNTIF(Alt!C:C,A178) -> 0
A179: Coated Iron Plate | B179: Plastic | C179: 10 | D179: Iron Plate | E179: 75 | F179: Assembler | G179: 15 | H179: =COUNTIF(Alt!C:C,A179) -> 0
A180: Steel Coated Plate | B180: Steel Ingot | C180: 7.5 | D180: Iron Plate | E180: 45 | F180: Assembler | G180: 15 | H180: =COUNTIF(Alt!C:C,A180) -> 0
A181: Steel Coated Plate | B181: Plastic | C181: 5 | D181: Iron Plate | E181: 45 | F181: Assembler | G181: 15 | H181: =COUNTIF(Alt!C:C,A181) -> 0
A182: Iron Rebar | B182: Iron Rod | C182: 15 | D182: Iron Rebar | E182: 15 | F182: Constructor | G182: 4 | H182: =COUNTIF(Alt!C:C,A182) -> 1
A183: Iron Rod | B183: Iron Ingot | C183: 15 | D183: Iron Rod | E183: 15 | F183: Constructor | G183: 4 | H183: =COUNTIF(Alt!C:C,A183) -> 1
A184: Steel Rod | B184: Steel Ingot | C184: 12 | D184: Iron Rod | E184: 48 | F184: Constructor | G184: 4 | H184: =COUNTIF(Alt!C:C,A184) -> 0
A185: Magnetic Field Generator | B185: Versatile Framework | C185: 2.5 | D185: Magnetic Field Generator | E185: 1 | F185: Manufacturer | G185: 55 | H185: =COUNTIF(Alt!C:C,A185) -> 1
A186: Magnetic Field Generator | B186: Electromagnetic Control Rod | C186: 1 | D186: Magnetic Field Generator | E186: 1 | F186: Manufacturer | G186: 55 | H186: =COUNTIF(Alt!C:C,A186) -> 1
A187: Magnetic Field Generator | B187: Battery | C187: 5 | D187: Magnetic Field Generator | E187: 1 | F187: Manufacturer | G187: 55 | H187: =COUNTIF(Alt!C:C,A187) -> 1
A188: Modular Engine | B188: Motor | C188: 2 | D188: Modular Engine | E188: 1 | F188: Manufacturer | G188: 55 | H188: =COUNTIF(Alt!C:C,A188) -> 1
A189: Modular Engine | B189: Rubber | C189: 15 | D189: Modular Engine | E189: 1 | F189: Manufacturer | G189: 55 | H189: =COUNTIF(Alt!C:C,A189) -> 1
A190: Modular Engine | B190: Smart Plating | C190: 2 | D190: Modular Engine | E190: 1 | F190: Manufacturer | G190: 55 | H190: =COUNTIF(Alt!C:C,A190) -> 1
A191: Modular Frame | B191: Reinforced Iron Plate | C191: 3 | D191: Modular Frame | E191: 2 | F191: Assembler | G191: 15 | H191: =COUNTIF(Alt!C:C,A191) -> 1
A192: Modular Frame | B192: Iron Rod | C192: 12 | D192: Modular Frame | E192: 2 | F192: Assembler | G192: 15 | H192: =COUNTIF(Alt!C:C,A192) -> 1
A193: Bolted Frame | B193: Reinforced Iron Plate | C193: 7.5 | D193: Modular Frame | E193: 5 | F193: Assembler | G193: 15 | H193: =COUNTIF(Alt!C:C,A193) -> 0
A194: Bolted Frame | B194: Screw | C194: 140 | D194: Modular Frame | E194: 5 | F194: Assembler | G194: 15 | H194: =COUNTIF(Alt!C:C,A194) -> 0
A195: Steeled Frame | B195: Reinforced Iron Plate | C195: 2 | D195: Modular Frame | E195: 3 | F195: Assembler | G195: 15 | H195: =COUNTIF(Alt!C:C,A195) -> 0
A196: Steeled Frame | B196: Steel Pipe | C196: 10 | D196: Modular Frame | E196: 3 | F196: Assembler | G196: 15 | H196: =COUNTIF(Alt!C:C,A196) -> 0
A197: Rigour Motor | B197: Rotor | C197: 3.75 | D197: Motor | E197: 7.5 | F197: Manufacturer | G197: 55 | H197: =COUNTIF(Alt!C:C,A197) -> 1
A198: Rigour Motor | B198: Stator | C198: 3.75 | D198: Motor | E198: 7.5 | F198: Manufacturer | G198: 55 | H198: =COUNTIF(Alt!C:C,A198) -> 1
A199: Rigour Motor | B199: Crystal Oscillator | C199: 1.25 | D199: Motor | E199: 7.5 | F199: Manufacturer | G199: 55 | H199: =COUNTIF(Alt!C:C,A199) -> 1
A200: Motor | B200: Rotor | C200: 10 | D200: Motor | E200: 5 | F200: Assembler | G200: 15 | H200: =COUNTIF(Alt!C:C,A200) -> 0
... 166 more rows

Sheet Plastic vs HOR
B2: Recipes
B3: RecipeName | C3: InputName | D3: InPPM | E3: OutputName | F3: OuPPM
B4: Plastic | C4: Crude Oil | D4: 30 | E4: Plastic | F4: 20
E5: Heavy | F5: 10
B7: Heavy | C7: Crude Oil | D7: 30 | E7: Heavy | F7: 40
E8: Resin | F8: 20
B10: RP | C10: PR | D10: 60 | E10: Plastic | F10: 20
C11: Water | D11: 20
B14: Refineries
B15: Number | C15: Recipe | D15: Plastic | E15: Heavy
B16: 1 | C16: =IF(B16<=$H$16,"Plastic",IF(B16<=$H$16+$H$17,"Heavy","")) -> Plastic | D16: =IF(C16="Plastic",20,IF(C16="Heavy",6.6667,0)) -> 20 | E16: =IF(C16="Plastic",10,IF(C16="Heavy",40,0)) -> 10 | G16: Plastics | H16: 21
B17: =B16+1 -> 2 | C17: =IF(B17<=$H$16,"Plastic",IF(B17<=$H$16+$H$17,"Heavy","")) -> Plastic | D17: =IF(C17="Plastic",20,IF(C17="Heavy",6.6667,0)) -> 20 | E17: =IF(C17="Plastic",10,IF(C17="Heavy",40,0)) -> 10 | G17: Heavies | H17: 2 | I17: ← actually 1.5
B18: =B17+1 -> 3 | C18: Plastic | D18: 20 | E18: 10
B19: 4 | C19: Plastic | D19: 20 | E19: 10 | G19: Name | H19: Total | I19: Goal
B20: 5 | C20: Plastic | D20: 20 | E20: 10 | G20: Plastic | H20: =SUM(D16:D45) -> 433.3 | I20: 427 | J20: =H20-I20 -> 6.3
B21: 6 | C21: Plastic | D21: 20 | E21: 10 | G21: Heavy | H21: =SUM(E16:E45) -> 290 | I21: 270
B22: 7 | C22: Plastic | D22: 20 | E22: 10
B23: 8 | C23: Plastic | D23: 20 | E23: 10
B24: 9 | C24: Plastic | D24: 20 | E24: 10
B25: 10 | C25: Plastic | D25: 20 | E25: 10
B26: 11 | C26: Plastic | D26: =IF(C26="Plastic",20,IF(C26="Heavy",6.6667,0)) -> 20 | E26: =IF(C26="Plastic",10,IF(C26="Heavy",40,0)) -> 10
B27: 12 | C27: Plastic | D27: 20 | E27: 10
B28: 13 | C28: Plastic | D28: 20 | E28: 10
B29: 14 | C29: Plastic | D29: 20 | E29: 10
B30: 15 | C30: Plastic | D30: 20 | E30: 10
B31: 16 | C31: Plastic | D31: 20 | E31: 10
B32: 17 | C32: Plastic | D32: 20 | E32: 10
B33: 18 | C33: Plastic | D33: 20 | E33: 10
B34: 19 | C34: Plastic | D34: 20 | E34: 10
B35: 20 | C35: Plastic | D35: 20 | E35: 10
B36: 21 | C36: Plastic | D36: 20 | E36: 10
B37: 22 | C37: Heavy | D37: 6.6667 | E37: 40
B38: 23 | C38: Heavy | D38: 6.6667 | E38: 40
B39: 24 | D39: 0 | E39: 0
B40: 25 | D40: 0 | E40: 0
B41: 26 | D41: 0 | E41: 0
B42: 27 | D42: 0 | E42: 0
B43: 28 | D43: 0 | E43: 0
B44: 29 | D44: 0 | E44: 0
B45: 30 | D45: 0 | E45: 0

Sheet PlutNotes
A1: Plutonium Fuel Rod Production Notes
K3: Uranium | L3: 25 | M3: 1
K4: Encased Cell | L4: 20 | M4: =L4/L3 -> 0.8
A6: Desired Fuel Rods | B6: 2 | C6: per minute | E6: =B6/0.5 -> 4 | F6: Assemblers | H6: PCC | K6: Cell | L6: 100
K7: Fuel Rod | L7: 3 | M7: =L7/L6 -> 0.03
M8: =M7*M4 -> 0.024
A9: Encased Plutonium Cells | B9: =B6/0.5*10 -> 40 | C9: per minute | E9: =B9/10 -> 4 | F9: Particle Accelerators | K9: Fuel Rod | L9: 1
A10: Non-fissile Uranium | B10: =B6/0.5*75 -> 300 | C10: per minute | E10: =B10/100 -> 3 | F10: Blenders | K10: Waste | L10: 50 | M10: =L10/L9 -> 50
A11: Aluminum Casing | B11: =B6/0.5*10 -> 40 | C11: per minute | E11: =B11/60 -> 0.6666666667 | F11: Constructors | M11: =M8*M10 -> 1.2
A13: Uranium | B13: =B10/100*25 -> 75 | C13: per minute
A14: Uranium Waste | B14: =B10/100*25 -> 75 | C14: per minute | E14: =B14/10 -> 7.5 | F14: Nuclear Power Plants
A15: Nitric Acid | B15: =B10/100*15 -> 45 | C15: per minute | E15: =B15/30 -> 1.5 | F15: Blenders
A16: Sulfuric Acid | B16: =B10/100*25 -> 75 | C16: per minute | E16: =B16/50 -> 1.5 | F16: Refineries
A18: Uranium Fuel Rod | B18: =B14/10*0.2 -> 1.5 | C18: per minute | E18: =B18/0.6 -> 2.5 | F18: Manufacturers
A19: Encased Uranium Cell | B19: =E18*20 -> 50
A20: ECR | B20: =E18*2 -> 5
A21: Crystal Oscillator | B21: =E18*0.6 -> 1.5
A22: Beacon | B22: =E18*1.2 -> 3
A24: Nitrogen Gas | B24: =E15*120 -> 180 | C24: per minute
A25: Water | B25: =30*E15 -> 45 | C25: per minute
A26: Iron Plate | B26: =10*E15 -> 15 | C26: per minute
A31: Pressure Conversion Cube | B31: =B6 -> 2 | C31: per minute | E31: =B31/1 -> 2 | F31: Assumbers
A32: Radio Control Unit | B32: 2 | C32: per minute
A35: Aluminum Ingots | B35: =B11/60*90 -> 60 | C35: per minute | E35: =B35/30 -> 2 | F35: Smelters
A36: Aluminum Scrap | B36: =B35/30*60 -> 120 | C36: per minute | E36: =B36/300 -> 0.40 | F36: Refineries
A38: Alumina Solution | B38: =B36/300*180 -> 72 | C38: per minute | E38: =B38/240 -> 0.30 | F38: Refineries
A39: Petrolium Coke | B39: =B36/300*60 -> 24 | C39: per minute
A41: Bauxite | B41: =B38/240*200 -> 60

Sheet Mall Layout
B3: First 10 Items | C3: Next 10 | D3: 3rd 10 | E3: Last 10
A5: Top | B5: Reinforced Iron Plate | C5: Motor | D5: Bullets | E5: Alclad Aluminum Sheet
B6: Cable | C6: Heavy Modular Frame | D6: Iodine Filters | E6: Fused Modular Frame
B7: Rotor | C7: Plastic | D7: Inhalers | E7: Supercomputer
B8: Copper Sheet | C8: High Speed Connector
B9: Steel Pipe | C9: Quartz Crystal | E9: Turbo Motor
A11: Bottom | B11: Iron plate | C11: Encased Industrial Beam | D11: Nobelisk | E11: Aluminum Casing
B12: Wire | C12: Modular Frame | D12: Gas Filters | E12: Radio Control Unit
B13: Iron Rod | C13: Rubber | D13: Fuel | E13: Computer
B14: Concrete | C14: Quickwire
B15: Steel Beam | C15: AI Limiter | E15: Cooling System

Sheet HMF Layout
A1: Layout of Heavy Modular Frame Factory
A3: Lower Level | B3: Count
A4: Compacted Coal Assemblers | B4: 4
A5: Steel Foundries | B5: 8
A6: Iron Smelters | B6: 10
A7: Concrete Constructors (maybe) | B7: 5
A8: Total Machines | B8: =SUM(B4:B7) -> 27
A10: Second Level
A11: Wire Constructors | B11: 5
A12: Plate Constructors | B12: 3
A13: Screw Constructors | B13: 11
A14: Steel Pipe Constructors | B14: 10
A15: Total Machines | B15: =SUM(B11:B14) -> 29
A17: Third Level
A18: RIP Assemblers | B18: 3
A19: EIB Assemblers | B19: 4
A20: Modular Frame Assemblers | B20: 9
A21: HMF Manufacturers | B21: 2
A22: Total Machines | B22: =SUM(B18:B21) -> 18

Sheet Turbo Comp
A1: Original Recipe
A3: Recipe | B3: Building | C3: Power | D3: Input Name | E3: Input PPM | F3: Output Name | G3: Output PPM
A4: Heavy Oil Residue | B4: Refinery | C4: 30 | F4: =A4 -> Heavy Oil Residue | G4: 40
A6: Water | B6: Water Extractor | C6: 20 | F6: =A6 -> Water | G6: 120
A8: Packaged Water | B8: Packager | C8: 10 | D8: Water | E8: 60 | F8: =A8 -> Packaged Water | G8: 60
A10: Diluted Packaged Fuel | B10: Refinery | C10: 30 | D10: HOR | E10: 30 | F10: =A10 -> Diluted Packaged Fuel | G10: 60
D11: Water | E11: 60 | F11: ↑
A13: Turbo Fuel | B13: Refinery | C13: 30 | D13: Fuel | E13: 22.5

Sheet HOR Fuel
B2: Oil: | C2: 600
B5: HOR Alt Recipe:
B6: 30pm oil to 40pm HOR | E6: Power Needed
B8: Refineries | C8: =C2/30 -> 20 | E8: =30*C8 -> 600
B10: HOR made | C10: =C8*40 -> 800
B12: Water | C12: =C10*2 -> 1600
B14: Extractors | C14: =C12/120 -> 13.33333333 | E14: =C14*20 -> 267
B16: Packagers | C16: =C12/60 -> 26.66666667 | E16: =C16*10 -> 267
B19: Diluted Packaged Fuel:
B20: 30pm HOR + 60pm Water Pack = 60pm Fuel
B22: Refineries | C22: =C10/30 -> 26.66666667 | E22: =30*C22 -> 800
B24: Fuel Made | C24: =C22*60 -> 1600
B26: Unpackagers | C26: =C24/60 -> 26.66666667 | E26: =C26*10 -> 267
B28: Fuel Generators | C28: =C24/12 -> 133.3333333
B30: Power | C30: =C28*150 -> 20,000
